bitfinex/quotes_SOLUSD_20241007
["timestamp","ask_amount","ask_price","bid_price","bid_amount"]
[1728294685704,6.7926,147.22,147.18,6.7942]
[1728294687396,1.69831611,147.25,147.19,1.35865288]
[1728294687623,8.48951611,147.25,147.21,6.7929]
[1728294687820,6.7912,147.25,147.22,1.35834981]
[1728294688320,23.0079,147.26,147.21,6.7928]
[1728294688495,1.69782474,147.27,147.22,8.15065979]
[1728294688695,6.7904,147.27,147.23,6.7919]
[1728294688898,6.7909,147.26,147.22,23.7733]
[1728294689110,1.69783403,147.25,147.19,16.9841]
[1728294689313,6.7926,147.22,147.19,16.9841]
[1728294689705,6.793,147.21,147.16,16.9875]
[1728294689896,17.02422032,147.25,147.18,1.35865625]
[1728294690101,6.7926,147.22,147.18,8.15285625]
[1728294690712,6.7926,147.22,147.18,6.7942]
[1728294691024,6.7926,147.22,147.18,8.15285027]
[1728294691231,8.49161731,147.21,147.17,6.7947]
[1728294694725,6.7933,147.21,147.17,6.7947]
[1728294695900,6.7933,147.21,147.18,1.35869828]
[1728294696518,6.7927,147.22,147.18,8.15299828]
[1728294697026,6.7927,147.22,147.18,6.7943]
[1728294697416,8.49137012,147.21,147.17,6.7946]
[1728294697719,6.7935,147.2,147.16,23.7826]
[1728294697908,15.3259,147.25,147.14,6.796]
[1728294697909,1.69851783,147.23,147.14,6.796]
[1728294698114,6.7944,147.18,147.14,6.796]
[1728294698911,6.7944,147.18,147.15,1.35893703]
[1728294699114,6.794,147.19,147.15,8.15463703]
[1728294700609,1.69863429,147.21,147.15,1.35893703]
[1728294700817,6.7935,147.2,147.17,6.7948]
[1728294701130,6.7933,147.21,147.17,6.7948]
[1728294701630,6.7934,147.2,147.16,1.35877094]
[1728294701931,6.7934,147.2,147.16,8.15387094]
[1728294703910,6.7934,147.2,147.16,6.7951]
[1728294704428,6.7939,147.19,147.15,16.9889]
[1728294704635,6.7939,147.19,147.15,23.7845]
[1728294706713,6.7944,147.18,147.15,23.7845]
[1728294708929,6.7941,147.19,147.15,23.7845]
[1728294711513,6.7949,147.17,147.14,6.92159]
[1728294712335,6.7955,147.16,147.13,0.12549]
[1728294713235,6.7955,147.16,147.13,6.92209]
[1728294713413,6.7949,147.17,147.14,1.35906004]
[1728294713730,6.7949,147.17,147.14,8.15526004]
[1728294714120,6.7949,147.17,147.14,6.7962]
[1728294714333,6.7945,147.18,147.15,1.35900463]
[1728294715039,6.7945,147.18,147.15,8.15470463]
[1728294715733,6.7945,147.18,147.14,16.9905]
[1728294715909,6.7945,147.18,147.14,23.7865]
[1728294716746,6.7949,147.17,147.14,23.7865]
[1728294718021,6.7949,147.17,147.15,1.35897491]
[1728294718233,6.7945,147.18,147.15,1.35897491]
[1728294720543,6.7945,147.18,147.14,23.7865]
[1728294720742,6.7945,147.18,147.13,0.12549]
[1728294720743,6.7953,147.16,147.13,6.92209]
[1728294720943,6.7953,147.16,147.12,0.12549]
[1728294721150,6.7953,147.16,147.12,0.25098]
[1728294721442,6.7953,147.16,147.13,6.7966]
[1728294721615,6.7953,147.16,147.14,1.35905444]
[1728294721822,1.6988321,147.19,147.14,1.35905444]
[1728294721823,6.795,147.17,147.14,1.35905444]
[1728294723246,6.795,147.17,147.13,6.7966]
[1728294723441,8.49239476,147.2,147.16,6.7952]
[1728294723643,8.49239476,147.2,147.16,8.15400849]
[1728294723644,6.7936,147.2,147.16,8.15400849]
[1728294723832,1.69851061,147.22,147.17,23.90689]
[1728294723833,6.7931,147.21,147.17,23.90689]
[1728294724148,1.69851061,147.22,147.17,23.90689]
[1728294724149,8.49121061,147.22,147.18,8.15297976]
[1728294724334,6.7919,147.24,147.2,6.7933]
[1728294724653,6.7916,147.24,147.21,1.35841219]
[1728294725349,6.7921,147.23,147.19,16.9845]
[1728294725548,6.793,147.21,147.17,27.04548]
[1728294725726,6.793,147.21,147.17,7.04548]
[1728294726346,1.69830671,147.24,147.17,1.60962536]
[1728294726652,6.7926,147.22,147.18,6.7943]
[1728294727153,21.69826,147.27,147.19,1.484098]
[1728294727332,6.7912,147.25,147.21,6.7929]
[1728294727648,6.7912,147.25,147.22,1.35832525]
[1728294728548,6.7912,147.25,147.21,6.7929]
[1728294730347,6.7912,147.25,147.21,8.15126603]
[1728294730538,6.7912,147.25,147.21,6.7929]
[1728294730742,6.7916,147.24,147.2,23.7765]
[1728294730934,6.7916,147.24,147.21,1.35837337]
[1728294733658,6.7916,147.24,147.2,23.7765]
[1728294733954,6.7916,147.24,147.21,1.35837172]
[1728294734431,6.7916,147.24,147.2,23.7765]
[1728294734633,6.7916,147.24,147.21,1.35837144]
[1728294735136,16.977,147.26,147.19,0.12549]
[1728294735349,6.7921,147.23,147.19,6.91909]
[1728294735541,6.7921,147.23,147.2,1.35841019]
[1728294735854,6.7917,147.24,147.2,6.7933]
[1728294737151,6.7917,147.24,147.21,1.35837495]
[1728294737354,6.7896,147.29,147.22,38.9071148]
[1728294737652,6.7894,147.29,147.25,6.7911]
[1728294737852,6.7903,147.27,147.24,0.12549]
[1728294738056,6.7903,147.27,147.23,16.9793]
[1728294738243,6.7903,147.27,147.24,1.48353736]
[1728294738864,6.7899,147.28,147.24,8.27513736]
[1728294739860,6.7899,147.28,147.24,6.91709]
[1728294740436,6.7902,147.27,147.24,0.12549]
[1728294740857,6.7908,147.26,147.23,16.9793]
[1728294741042,6.7908,147.26,147.22,6.91789]
[1728294742140,6.7908,147.26,147.23,1.35818426]
[1728294743251,6.7905,147.27,147.23,6.792]
[1728294743650,6.7905,147.27,147.23,8.15011886]
[1728294744538,6.7905,147.27,147.23,6.792]
[1728294744942,6.7907,147.26,147.23,6.792]
[1728294745458,6.7907,147.26,147.23,0.12549]
[1728294746260,6.7907,147.26,147.22,23.89889]
[1728294746464,6.7914,147.25,147.22,16.981]
[1728294746667,1.69768307,147.29,147.22,16.981]
[1728294746866,6.791,147.26,147.23,1.35828542]
[1728294747746,6.791,147.26,147.22,23.7734]
[1728294747944,6.791,147.26,147.23,1.35816626]
[1728294748169,6.791,147.26,147.22,23.7734]
[1728294748463,6.791,147.26,147.23,1.35816964]
[1728294753046,6.791,147.26,147.22,23.7734]
[1728294753242,6.791,147.26,147.23,1.3581697]
[1728294753463,6.7905,147.27,147.24,6.7915]
[1728294753647,6.7899,147.28,147.25,6.791]
[1728294753850,6.7894,147.29,147.26,1.35793377]
[1728294754966,6.7897,147.28,147.26,1.3579734]
[1728294755374,6.7897,147.28,147.24,23.7701]
[1728294756359,6.7913,147.25,147.21,35.0384]
[1728294756561,16.9734,147.29,147.22,1.35826048]
[1728294756867,6.7894,147.29,147.25,6.7911]
[1728294757173,6.7898,147.28,147.24,6.7915]
[1728294757349,6.7898,147.28,147.25,1.35801254]
[1728294759970,6.7898,147.28,147.24,6.7915]
[1728294760147,6.7898,147.28,147.25,1.35801391]
[1728294761351,6.7898,147.28,147.24,6.7915]
[1728294761556,6.7898,147.28,147.25,1.35801152]
[1728294763467,16.9709,147.32,147.26,0.12549]
[1728294763683,18.66819481,147.32,147.26,0.12549]
[1728294763968,1.69729481,147.32,147.26,0.25098]
[1728294764149,6.7889,147.3,147.26,7.04128]
[1728294764345,6.7889,147.3,147.27,1.35777767]
[1728294765252,6.7885,147.31,147.27,8.14797767]
[1728294765950,6.787,147.34,147.3,6.7886]
[1728294766269,16.78146123,147.37,147.31,1.35748892]
[1728294766454,6.7864,147.36,147.31,8.14548892]
[1728294767269,6.7857,147.37,147.33,6.7872]
[1728294767569,6.7857,147.37,147.34,1.35719538]
[1728294767957,6.7855,147.38,147.33,6.7872]
[1728294768173,1.69649436,147.39,147.34,0.12549]
[1728294768488,6.7857,147.37,147.34,0.12549]
[1728294771084,6.7857,147.37,147.32,0.12549]
[1728294771273,6.7865,147.35,147.31,23.7587]
[1728294771462,6.7865,147.35,147.32,0.12549]
[1728294771663,6.7871,147.34,147.28,16.9738]
[1728294771969,6.7871,147.34,147.3,26.7885]
[1728294773263,6.7878,147.33,147.29,6.7891]
[1728294773783,6.7878,147.33,147.3,1.35749037]
[1728294774081,1.69687151,147.36,147.3,8.14619037]
[1728294774298,21.69674213,147.39,147.3,1.35749037]
[1728294774455,6.7864,147.36,147.31,0.12549]
[1728294774772,6.7864,147.36,147.31,7.03898]
[1728294775267,20.0,147.39,147.31,7.03898]
[1728294775576,20.0,147.39,147.31,0.25098]
[1728294775776,6.7861,147.36,147.32,6.7876]
[1728294776079,6.7867,147.35,147.31,7.03918]
[1728294776463,1.6965869,147.39,147.32,1.35731711]
[1728294776766,6.7867,147.35,147.32,1.35731711]
[1728294777374,6.7867,147.35,147.3,30.151]
[1728294777581,6.7871,147.34,147.3,30.151]
[1728294777755,6.7871,147.34,147.3,23.7602]
[1728294779472,6.7871,147.34,147.3,16.9717]
[1728294779876,6.7878,147.33,147.29,6.91459]
[1728294780584,1.69682142,147.37,147.27,34.4901]
[1728294780793,6.7883,147.32,147.28,6.7896]
[1728294781090,6.7883,147.32,147.28,8.14724656]
[1728294781460,6.7878,147.33,147.29,6.7892]
[1728294782282,1.69695182,147.34,147.27,34.4901]
[1728294782483,6.788,147.32,147.28,6.91489]
[1728294782795,6.788,147.32,147.28,8.27252638]
[1728294782979,6.7885,147.31,147.28,0.12549]
[1728294783662,6.7879,147.32,147.28,6.91509]
[1728294784961,6.7879,147.32,147.29,1.35766396]
[1728294785876,6.7886,147.31,147.27,30.0159]
[1728294786186,6.7886,147.31,147.27,23.765]
[1728294786573,1.69695182,147.34,147.27,16.975]
[1728294786772,6.7889,147.3,147.27,16.975]
[1728294788095,6.7889,147.3,147.28,1.35776774]
[1728294791108,6.7885,147.31,147.27,23.7652]
[1728294792283,20.0,147.33,147.25,0.25098]
[1728294792478,1.69729537,147.32,147.25,0.25098]
[1728294793078,18.66749537,147.32,147.25,0.12549]
[1728294793382,6.79,147.28,147.25,0.12549]
[1728294794993,6.7904,147.27,147.24,16.978]
[1728294795395,6.7904,147.27,147.24,18.33604664]
[1728294795588,15.1087,147.3,147.24,16.978]
[1728294795589,16.80631518,147.3,147.24,16.978]
[1728294795790,6.7901,147.28,147.24,23.7695]
[1728294796089,16.80631518,147.3,147.24,16.978]
[1728294796417,6.7897,147.29,147.25,6.7911]
[1728294796708,16.80631518,147.3,147.25,6.7911]
[1728294796709,6.7898,147.28,147.25,6.7911]
[1728294797395,6.7898,147.28,147.24,16.978]
[1728294797584,6.7898,147.28,147.24,23.7694]
[1728294798095,6.7898,147.28,147.25,1.35806528]
[1728294798398,6.7898,147.28,147.24,23.7694]
[1728294800214,6.7898,147.28,147.25,8.14899321]
[1728294800584,23.5952816,147.3,147.26,6.7906]
[1728294800780,8.4865816,147.3,147.26,6.7906]
[1728294801008,1.69740602,147.32,147.27,1.35792481]
[1728294801213,6.788,147.32,147.28,17.09959]
[1728294801389,6.788,147.32,147.29,1.35764609]
[1728294801588,6.788,147.32,147.29,8.14694609]
[1728294802108,6.788,147.32,147.29,1.35764609]
[1728294803398,6.788,147.32,147.28,23.88919]
[1728294803595,6.7873,147.34,147.3,6.7887]
[1728294803785,6.7873,147.34,147.31,1.35750719]
[1728294804116,1.69688399,147.36,147.31,8.14580719]
[1728294804117,6.7867,147.35,147.31,8.14580719]
[1728294804516,6.787,147.34,147.3,23.7605]
[1728294804690,6.787,147.34,147.31,1.35746753]
[1728294805704,1.69688399,147.36,147.3,16.9719]
[1728294805901,6.7875,147.33,147.3,16.9719]
[1728294806101,6.7875,147.33,147.31,1.3575062]
[1728294806301,1.69688399,147.36,147.29,6.789]
[1728294806497,18.66218399,147.36,147.3,1.35757917]
[1728294806713,6.7876,147.33,147.29,6.789]
[1728294807017,6.7879,147.32,147.28,7.04058]
[1728294807718,6.7879,147.32,147.29,1.3575952]
[1728294810526,18.66218399,147.36,147.29,8.1467952]
[1728294810527,6.7876,147.33,147.29,8.1467952]
[1728294812311,1.69698244,147.33,147.28,0.25098]
[1728294812502,6.788,147.32,147.28,7.04058]
[1728294812702,6.788,147.32,147.29,1.35764632]
[1728294815315,6.788,147.32,147.29,6.7892]
[1728294816518,16.9653,147.36,147.3,1.35764475]
[1728294816700,6.7876,147.33,147.3,6.7888]
[1728294817021,1.69685087,147.36,147.31,17.09589]
[1728294817192,6.7863,147.36,147.32,8.14493335]
[1728294817812,6.7865,147.35,147.32,8.14493335]
[1728294818520,6.7861,147.36,147.32,8.14493335]
[1728294820506,6.7857,147.37,147.33,6.7873]
[1728294820705,6.7857,147.37,147.34,1.35725081]
[1728294820905,6.7852,147.38,147.34,1.35725081]
[1728294821106,32.8849,147.42,147.35,6.7865]
[1728294821107,6.7847,147.39,147.35,6.7865]
[1728294821324,6.7847,147.39,147.36,1.35705375]
[1728294822203,6.7852,147.38,147.34,6.7868]
[1728294822406,32.8849,147.42,147.33,16.9681]
[1728294822407,6.7861,147.36,147.33,16.9681]
[1728294822927,6.7861,147.36,147.33,18.3253689]
[1728294823511,6.7861,147.36,147.33,16.9681]
[1728294825524,6.7866,147.35,147.31,6.91369]
[1728294827320,6.7866,147.35,147.32,1.35730799]
[1728294827524,6.7866,147.35,147.31,6.91369]
[1728294828628,6.7862,147.36,147.33,6.7874]
[1728294828934,21.69658471,147.39,147.33,6.7874]
[1728294828935,6.7859,147.37,147.34,1.3571563]
[1728294829439,6.7859,147.37,147.33,6.7874]
[1728294829732,21.69658471,147.39,147.32,17.09529]
[1728294829939,6.7861,147.36,147.32,23.88289]
[1728294830231,21.69658471,147.39,147.33,0.12549]
[1728294830429,6.7857,147.37,147.33,6.91259]
[1728294830809,6.7862,147.36,147.32,23.88299]
[1728294832330,6.7862,147.36,147.33,1.35722292]
[1728294832542,6.7862,147.36,147.32,23.88299]
[1728294833337,6.7862,147.36,147.33,6.7874]
[1728294833525,6.7862,147.36,147.33,8.14462338]
[1728294834135,1.69658471,147.39,147.34,6.7869]
[1728294834320,15.9257,147.42,147.34,6.7869]
[1728294834321,6.7854,147.38,147.35,8.14355549]
[1728294835222,6.7854,147.38,147.35,1.35705549]
[1728294840746,6.7854,147.38,147.34,23.7543]
[1728294841043,6.7859,147.37,147.34,0.12549]
[1728294843447,6.7859,147.37,147.34,1.48260212]
[1728294843826,1.69638899,147.41,147.36,0.25098]
[1728294844030,15.9257,147.42,147.38,6.7851]
[1728294844031,22.7091,147.42,147.38,6.7851]
[1728294844330,22.7091,147.42,147.36,0.12549]
[1728294844331,15.9257,147.42,147.39,8.14142752]
[1728294845137,15.9257,147.42,147.4,1.35669095]
[1728294845334,15.6544,147.46,147.4,1.35669095]
[1728294845525,6.7825,147.44,147.4,6.7841]
[1728294845726,6.7821,147.45,147.41,8.14027268]
[1728294845927,17.35011585,147.46,147.41,8.14027268]
[1728294845928,22.4359,147.46,147.42,6.90879]
[1728294846127,22.4359,147.46,147.43,1.35634982]
[1728294847136,6.7807,147.48,147.43,8.13874982]
[1728294847519,6.7802,147.49,147.44,7.03298]
[1728294847726,6.7802,147.49,147.45,1.35609248]
[1728294848443,6.7802,147.49,147.45,8.13799248]
[1728294849127,6.7806,147.48,147.45,1.35609248]
[1728294849755,15.6544,147.5,147.46,0.12549]
[1728294849941,6.7802,147.49,147.45,6.7818]
[1728294850144,6.7809,147.48,147.44,0.25098]
[1728294850646,1.69519076,147.52,147.46,0.12549]
[1728294850848,6.7799,147.5,147.46,1.35603977]
[1728294851027,6.7799,147.5,147.46,0.25098]
[1728294851353,1.69519076,147.52,147.46,1.60693003]
[1728294851567,6.7793,147.51,147.46,8.38803003]
[1728294852053,6.7793,147.51,147.46,7.03208]
[1728294852252,1.69487979,147.54,147.47,1.35590393]
[1728294852446,6.7787,147.52,147.48,0.12549]
[1728294852747,6.7787,147.52,147.49,1.35581211]
[1728294853650,6.7787,147.52,147.48,1.48130245]
[1728294854156,6.7787,147.52,147.48,0.12549]
[1728294854533,6.7787,147.52,147.48,1.48130258]
[1728294855148,21.69487979,147.54,147.46,6.90679]
[1728294855350,6.7796,147.5,147.47,1.48142037]
[1728294856056,6.7796,147.5,147.47,1.35593037]
[1728294860754,6.7796,147.5,147.46,6.90679]
[1728294861369,18.64017979,147.54,147.46,1.35594274]
[1728294861550,6.7802,147.49,147.46,1.35608028]
[1728294862265,1.6950983,147.52,147.46,1.35608028]
[1728294862479,6.7797,147.5,147.46,8.13748028]
[1728294862763,6.7797,147.5,147.46,6.7814]
[1728294863145,6.7797,147.5,147.47,1.3559523]
[1728294864562,6.7797,147.5,147.46,6.7814]
[1728294864764,6.7797,147.5,147.47,1.35595241]
[1728294865573,6.7797,147.5,147.46,6.7814]
[1728294871664,6.7802,147.49,147.46,0.12549]
[1728294872041,6.7802,147.49,147.45,23.86129]
[1728294873065,6.78,147.5,147.46,8.13737443]
[1728294873267,6.78,147.5,147.46,6.7813]
[1728294876958,6.78,147.5,147.47,1.35598324]
[1728294877965,6.78,147.5,147.46,6.7813]
[1728294878869,6.7801,147.49,147.46,6.7813]
[1728294880767,6.7801,147.49,147.46,0.12549]
[1728294880949,1.69493729,147.53,147.45,0.12549]
[1728294880950,6.7806,147.48,147.45,0.12549]
[1728294882272,6.7806,147.48,147.45,6.90739]
[1728294882749,6.7806,147.48,147.46,1.35612099]
[1728294883950,6.781,147.47,147.45,1.35612123]
[1728294884273,1.6951992,147.51,147.44,25.09409757]
[1728294884454,6.7808,147.48,147.44,25.09409757]
[1728294884856,1.6951992,147.51,147.44,25.09409757]
[1728294885166,6.7807,147.48,147.45,1.35619609]
[1728294885473,6.7807,147.48,147.44,23.7379]
[1728294888972,6.7807,147.48,147.45,1.35619397]
[1728294889863,6.7798,147.5,147.46,6.7812]
[1728294890181,6.7798,147.5,147.47,1.35601857]
[1728294893763,6.7798,147.5,147.46,6.7812]
[1728294894784,6.7798,147.5,147.47,1.35601993]
[1728294896469,6.7798,147.5,147.47,1.35602086]
[1728294897456,6.7798,147.5,147.46,6.7812]
[1728294897856,6.7798,147.5,147.47,1.35602141]
[1728294900285,6.7798,147.5,147.46,6.7812]
[1728294900785,21.69503881,147.54,147.47,1.35603105]
[1728294901086,8.47257776,147.54,147.5,6.7795]
[1728294901287,6.7778,147.54,147.51,1.35570309]
[1728294902084,8.47221593,147.55,147.51,8.13480309]
[1728294902291,6.7778,147.54,147.51,1.35570309]
[1728294902866,6.779,147.52,147.48,7.03118]
[1728294903067,6.7788,147.52,147.48,6.90569]
[1728294903466,6.7795,147.51,147.47,23.7323]
[1728294903772,6.7795,147.51,147.48,6.7805]
[1728294903986,6.7795,147.51,147.47,23.7323]
[1728294905284,6.7795,147.51,147.48,1.35587865]
[1728294905983,6.7795,147.51,147.47,23.7323]
[1728294906689,6.7795,147.51,147.48,1.35592411]
[1728294911272,1.69490183,147.5,147.44,16.9551]
[1728294911673,6.7806,147.48,147.45,1.356192]
[1728294911994,1.69490183,147.5,147.45,1.356192]
[1728294912205,6.7798,147.5,147.46,6.7813]
[1728294912371,6.7798,147.5,147.47,1.35602276]
[1728294912571,6.7798,147.5,147.46,6.7813]
[1728294912785,1.69502192,147.51,147.46,6.7813]
[1728294912786,6.7795,147.51,147.47,6.781]
[1728294913777,6.7797,147.5,147.47,1.48141027]
[1728294913976,6.7793,147.51,147.47,6.90639]
[1728294914496,6.7793,147.51,147.48,1.35591775]
[1728294915003,1.69489722,147.54,147.48,18.30721775]
[1728294916008,6.7785,147.53,147.49,6.7801]
[1728294916167,6.7785,147.53,147.5,1.3557067]
[1728294917997,1.69475621,147.55,147.5,1.3557067]
[1728294918194,6.7779,147.54,147.5,6.7792]
[1728294918698,6.7779,147.54,147.51,1.35561478]
[1728294919200,6.7779,147.54,147.51,1.35560583]
[1728294920206,6.7776,147.55,147.51,8.13470583]
[1728294921001,1.69451847,147.56,147.52,6.7786]
[1728294921002,6.777,147.56,147.52,6.7786]
[1728294921296,6.777,147.56,147.53,1.35550503]
[1728294923716,6.7773,147.55,147.51,7.02998]
[1728294923993,6.7779,147.54,147.5,23.7285]
[1728294924583,1.69448497,147.56,147.51,1.35558797]
[1728294924787,6.7774,147.55,147.51,8.13458797]
[1728294925305,6.7774,147.55,147.51,6.779]
[1728294925486,6.7774,147.55,147.52,1.35557953]
[1728294925687,6.7774,147.55,147.51,6.779]
[1728294926293,6.7774,147.55,147.52,1.3555813]
[1728294926674,6.7774,147.55,147.51,6.779]
[1728294927807,6.7774,147.55,147.52,1.35558275]
[1728294928102,6.7774,147.55,147.51,6.779]
[1728294928306,1.69427873,147.56,147.52,6.7784]
[1728294928480,6.7773,147.55,147.52,6.7784]
[1728294928880,6.7773,147.55,147.51,7.03008]
[1728294929383,1.69427873,147.56,147.51,6.90459]
[1728294929704,6.7778,147.54,147.51,6.90459]
[1728294930406,1.69427873,147.56,147.51,6.90459]
[1728294930598,6.7775,147.55,147.51,6.90459]
[1728294931500,6.7782,147.54,147.5,16.949]
[1728294931799,6.7781,147.54,147.5,23.7285]
[1728294932209,6.7784,147.53,147.5,16.949]
[1728294932393,6.779,147.52,147.48,6.0877]
[1728294932595,6.779,147.52,147.49,1.35580274]
[1728294932798,6.7765,147.57,147.53,6.778]
[1728294932998,8.4704015,147.58,147.54,8.1330612]
[1728294933809,1.6942015,147.58,147.54,1.3553612]
[1728294933994,6.7765,147.57,147.53,23.7236]
[1728294935012,6.7765,147.57,147.54,1.35540758]
[1728294935184,6.7765,147.57,147.53,23.7236]
[1728294935389,6.7774,147.55,147.51,0.12549]
[1728294935697,6.7778,147.54,147.5,35.11739]
[1728294937796,6.7778,147.54,147.5,23.7277]
[1728294939098,6.7783,147.53,147.5,23.7277]
[1728294940808,6.7783,147.53,147.51,1.35567179]
[1728294941206,6.7779,147.54,147.51,1.35567179]
[1728294942394,6.7779,147.54,147.5,23.7277]
[1728294943305,6.7779,147.54,147.51,1.35565798]
[1728294943718,6.7779,147.54,147.5,23.7277]
[1728294943916,6.7774,147.55,147.51,8.13445826]
[1728294944994,6.7774,147.55,147.52,6.7786]
[1728294945397,15.8367,147.57,147.53,8.13350999]
[1728294945398,6.7764,147.57,147.53,8.13350999]
[1728294945992,6.7762,147.58,147.54,6.90309]
[1728294946192,6.7765,147.57,147.55,1.35530104]
[1728294946392,6.7765,147.57,147.53,7.02888]
[1728294947115,6.7769,147.56,147.53,6.90339]
[1728294948218,6.7769,147.56,147.52,23.7252]
[1728294948892,2.63026879,147.59,147.52,16.9466]
[1728294948893,6.7774,147.55,147.52,16.9466]
[1728294949092,6.7774,147.55,147.52,18.30211495]
[1728294949293,6.7774,147.55,147.52,16.9466]
[1728294949718,6.7774,147.55,147.52,18.30209574]
[1728294950015,6.7774,147.55,147.52,16.9466]
[1728294951020,19.23436879,147.59,147.52,23.7252]
[1728294951212,6.7769,147.56,147.52,23.7252]
[1728294951397,6.7769,147.56,147.52,25.08066948]
[1728294955197,2.63024481,147.59,147.54,0.12549]
[1728294955397,0.9358813,147.59,147.54,17.06979]
[1728294955818,6.776,147.58,147.54,23.84719]
[1728294956329,6.7765,147.57,147.54,16.9443]
[1728294956625,6.7771,147.56,147.52,12.9587]
[1728294959223,6.7771,147.56,147.53,1.35547191]
[1728294962415,6.7778,147.54,147.52,1.35547334]
[1728294962600,15.5938,147.58,147.48,6.1948]
[1728294962601,6.7782,147.53,147.49,6.90539]
[1728294963026,6.7782,147.53,147.5,6.7796]
[1728294964823,18.63569262,147.57,147.5,6.7796]
[1728294965027,6.778,147.54,147.51,1.35568361]
[1728294965449,6.778,147.54,147.5,6.7796]
[1728294966123,18.63569262,147.57,147.51,1.35568647]
[1728294966320,6.7775,147.55,147.51,8.13478647]
[1728294966625,6.777,147.56,147.52,6.90389]
[1728294966822,6.777,147.56,147.53,1.35547282]
[1728294972435,6.777,147.56,147.53,8.13367282]
[1728294973151,6.7761,147.58,147.54,16.9442]
[1728294973349,0.9358813,147.59,147.55,1.35527738]
[1728294973533,0.9358813,147.59,147.56,6.7765]
[1728294973849,0.9358813,147.59,147.56,8.13162368]
[1728294974045,0.9358813,147.59,147.56,6.7765]
[1728294974360,0.9358813,147.59,147.55,1.35516692]
[1728294974647,7.7113813,147.59,147.55,6.7772]
[1728294974842,1.69403753,147.58,147.54,16.9442]
[1728294975018,6.7765,147.57,147.53,6.7781]
[1728294975439,0.9358813,147.59,147.54,1.35536256]
[1728294975638,6.7761,147.58,147.54,8.13316256]
[1728294976130,8.47020659,147.58,147.54,6.7778]
[1728294976549,6.7765,147.57,147.53,23.7235]
[1728294977340,6.7765,147.57,147.54,1.35536803]
[1728294979048,6.7765,147.57,147.53,23.7235]
[1728294979945,6.7765,147.57,147.54,1.35536866]
[1728294980146,6.7761,147.58,147.54,8.13306866]
[1728294980848,6.7761,147.58,147.54,6.7777]
[1728294982450,6.7765,147.57,147.55,1.35534125]
[1728294983455,6.7761,147.58,147.54,8.13300085]
[1728294984651,7.7115813,147.59,147.55,7.02828]
[1728294985327,7.7115813,147.59,147.56,1.35515307]
[1728294985526,7.7115813,147.59,147.55,7.02828]
[1728294986634,0.9358813,147.59,147.53,23.7233]
[1728294986949,6.7764,147.57,147.54,0.25098]
[1728294987728,6.7761,147.58,147.54,7.02868]
[1728294989350,6.7761,147.58,147.55,1.3552633]
[1728294990127,6.7761,147.58,147.54,7.02868]
[1728294991156,6.7761,147.58,147.55,1.3552662]
[1728294991535,6.7761,147.58,147.54,7.02868]
[1728294992343,6.7765,147.57,147.54,0.12549]
[1728294992628,6.7765,147.57,147.53,23.7235]
[1728294993347,6.7765,147.57,147.54,1.35533602]
[1728294994047,6.7765,147.57,147.54,0.25098]
[1728294994244,6.7765,147.57,147.54,1.60625003]
[1728294994833,6.7765,147.57,147.54,0.25098]
[1728294996957,6.7765,147.57,147.54,1.60625156]
[1728294998460,6.7765,147.57,147.54,0.25098]
[1728295000359,2.62996242,147.59,147.54,1.60625249]
[1728295000658,6.7764,147.58,147.54,8.38395249]
[1728295001243,7.7115813,147.59,147.55,6.777]
[1728295001440,7.7115813,147.59,147.56,1.3551301]
[1728295001651,7.7115813,147.59,147.57,7.02708]
[1728295001652,0.9358813,147.59,147.57,7.02708]
[1728295001849,0.9358813,147.59,147.58,32.15871205]
[1728295002651,0.9358813,147.59,147.58,30.803764]
[1728295002965,0.9358813,147.59,147.58,32.15835748]
[1728295003163,0.9358813,147.59,147.58,30.803764]
[1728295003367,0.9358813,147.59,147.58,50.803764]
[1728295004062,0.9358813,147.59,147.58,44.027864]